[Event "GER-ch Youth U12M 2018"]
[Site "Willingen"]
[Date "2018.05.25"]
[Round "9"]
[White "Eilenberg, Jonas"]
[Black "Tham, Nam"]
[Result "0-1"]
[ECO "D31"]
[WhiteElo "1852"]
[BlackElo "1866"]
[Annotator "NA RC"]
[PlyCount "106"]
[EventDate "2018.05.19"]
[EventType "swiss"]
[EventCountry "GER"]
[SourceTitle "playchess.com"]
[Source "ChessBase"]
[SourceQuality "1"]
[TimeControl "40/4500+30:900+30"]

1. d4 {[%emt 0:00:00]} d5 {[%emt 0:00:05]} 2. c4 {[%emt 0:00:00]} e6 {[%emt 0:00:06]} 3. Nc3 {[%emt 0:00:00]} c6 {[%emt 0:00:05]} 4. Bf4 {[%emt 0:00:00]} Nf6 {[%emt 0:00:18]} 5. e3 {[%emt 0:00:00]} Nbd7 {[%emt 0:00:43]} 6. Bd3 {[%emt 0:01:34]} Be7 {[%emt 0:01:19]} 7. Nf3 {[%emt 0:00:49]} O-O {[%emt 0:01:58]} 8. cxd5 {[%emt 0:00:35]} exd5 {[%emt 0:00:46]} 9. h3 {[%emt 0:00:12]} Re8 {[%emt 0:01:00] LiveBook: 85 Games} 10. O-O {[%emt 0:00:14]} h6 {[%emt 0:02:13] D35: Queen's Gambit Declined: Exchange Variation} (10... Nf8 11. Qc2 Ng6 12. Bh2 Bd6 13. Bxd6 Qxd6 14. Rab1 a5 15. a3 Ne7 16. Na4 g6 17. Nc5 Nd7 18. b4 axb4 19. axb4 b6 20. Na4 b5 21. Nc3 Nb6 22. e4 {½-½ (47) Macieja,B (2651)-L'Ami,E (2624) Khanty-Mansiysk 2010}) 11. Qc2 {[%emt 0:01:34]} Nf8 {[%emt 0:02:25]} 12. Rab1 {[%emt 0:02:42]} a5 {[%emt 0:01:33]} 13. a3 {[%emt 0:05:13]} Bd6 $146 {[%emt 0:01:29]} ({Predecessor:} 13... Ne6 14. Bh2 Nc7 15. b4 axb4 16. axb4 Bd6 17. Ne5 Nd7 18. Nxd7 Qxd7 19. Bxd6 Qxd6 {½-½ (31) Pashev,D (1966)-Paunchev,D (2055) Sunny Beach 2015}) 14. Bxd6 {[%emt 0:01:34]} Qxd6 {[%emt 0:00:07]} 15. Ne5 {[%emt 0:00:53]} N6d7 {[%emt 0:02:19]} 16. Nf3 {[%emt 0:02:13]} Nf6 {[%emt 0:01:13]} 17. Ne2 {[%emt 0:01:02]} Ne4 {[%emt 0:03:31]} 18. Bxe4 {[%emt 0:05:06]} Rxe4 {[%emt 0:02:01]} 19. Ng3 {[%emt 0:04:30]} Re8 {[%emt 0:01:16]} 20. b4 {[%emt 0:04:08]} b5 {[%emt 0:06:00]} 21. Rfc1 {[%emt 0:01:38]} Bd7 {[%emt 0:02:57]} 22. Ne5 {[%emt 0:01:03]} Rec8 {[%emt 0:00:32]} 23. Qc5 {[%emt 0:08:22]} Qxc5 {[%emt 0:04:32]} 24. Rxc5 {[%emt 0:01:55]} f6 {[%emt 0:03:57]} 25. Nf3 {[%emt 0:00:55]} Ne6 {[%emt 0:01:23]} 26. Rc3 {[%emt 0:00:42]} Nd8 {[%emt 0:00:44]} 27. Nh4 {[%emt 0:01:05]} Nb7 {[%emt 0:02:30]} 28. Nhf5 {[%emt 0:01:17]} Kf7 {[%emt 0:00:27]} 29. f3 {[%emt 0:03:01]} axb4 {[%emt 0:09:50]} 30. axb4 {[%emt 0:00:28]} Ra4 {[%emt 0:04:39]} 31. e4 {[%emt 0:01:21]} dxe4 {[%emt 0:04:59]} 32. fxe4 {[%emt 0:00:48]} Kf8 {[%emt 0:05:29]} 33. Rc2 {[%emt 0:05:36]} ({White should try} 33. e5 $14) 33... Kf7 {[%emt 0:02:38]} (33... g6 $11 34. Nxh6 Nd6) 34. Kf2 {[%emt 0:00:42]} Kf8 {[%emt 0:00:21]} 35. Ke2 {[%emt 0:03:36]} Kf7 {[%emt 0:00:40]} 36. Ne3 {[%emt 0:00:43]} g6 {[%emt 0:01:18]} 37. Nh1 {[%emt 0:01:30]} Nd6 {[%emt 0:03:58]} 38. Nf2 {[%emt 0:01:24]} Re8 {[%emt 0:03:14]} 39. Kf3 {[%emt 0:02:06]} Ra3 {[%emt 0:01:50]} 40. Rd2 {[%emt 0:01:53] [#]} Bf5 $1 {[%emt 0:20:28]} 41. Rc1 {[%emt 0:23:13]} Bxe4+ {[%emt 0:00:00]} 42. Nxe4 {[%emt 0:00:00]} Nxe4 {[%emt 0:00:00]} 43. Re2 {[%emt 0:00:00]} Re6 {[%emt 0:00:00]} 44. Kf4 $2 {[%emt 0:00:00]} (44. Rd1) 44... g5+ $19 {[%emt 0:00:00]} 45. Kg4 {[%emt 0:00:00]} Kg6 {[%emt 0:00:00]} 46. h4 {[%emt 0:00:00]} f5+ {[%emt 0:00:00]} 47. Kh3 {[%emt 0:00:00]} f4 {[%emt 0:00:00]} 48. d5 {[%emt 0:00:00]} cxd5 {[%emt 0:00:00]} 49. Rc7 {[%emt 0:00:00]} Rxe3+ {[%emt 0:00:00]} 50. Rxe3 {[%emt 0:00:00]} fxe3 {[%emt 0:00:00]} 51. h5+ {[%emt 0:00:00]} Kxh5 {[%emt 0:00:00]} 52. Rg7 {[%emt 0:00:00]} Nf2+ {[%emt 0:00:00]} 53. Kg3 {[%emt 0:00:00]} e2 {[%emt 0:00:14]} 0-1

[Event "GER-ch Youth U12M 2018"]
[Site "Willingen"]
[Date "2018.05.25"]
[Round "9"]
[White "Farokhi, Keyvan"]
[Black "Foerster-Yialamas, Lucas"]
[Result "1-0"]
[ECO "D85"]
[WhiteElo "1844"]
[BlackElo "1924"]
[Annotator "NA RC"]
[PlyCount "71"]
[EventDate "2018.05.19"]
[EventType "swiss"]
[EventCountry "GER"]
[SourceTitle "playchess.com"]
[Source "ChessBase"]
[SourceQuality "1"]
[TimeControl "40/4500+30:900+30"]

1. d4 {[%emt 0:00:00]} Nf6 {[%emt 0:00:04]} 2. c4 {[%emt 0:00:00]} g6 {[%emt 0:00:03]} 3. Nc3 {[%emt 0:00:00]} d5 {[%emt 0:00:01]} 4. cxd5 {[%emt 0:00:00]} Nxd5 {[%emt 0:00:01]} 5. e4 {[%emt 0:00:52]} Nxc3 {[%emt 0:00:01]} 6. bxc3 {[%emt 0:00:37]} Bg7 {[%emt 0:00:01]} 7. Be3 {[%emt 0:00:28]} c5 {[%emt 0:00:09]} 8. Rc1 {[%emt 0:01:08]} O-O {[%emt 0:00:14]} 9. Qd2 {[%emt 0:00:12]} Qa5 {[%emt 0:00:39]} 10. d5 {[%emt 0:01:20]} Rd8 {[%emt 0:01:19]} 11. Nf3 {[%emt 0:00:41]} Bg4 {[%emt 0:02:49] D85: Grünfeldindisch (Abtauschvariante, 7.Sf3 bzw nicht 7.Lc4)} (11... e6 12. Bg5 f6 13. Be3 Nc6 14. Bd3 Ne7 15. c4 Qxd2+ 16. Nxd2 b6 17. O-O h6 18. Rfd1 f5 19. f3 g5 {½-½ (27) Onischuk,A (2682)-Svidler,P (2751) Tbilisi 2017}) 12. c4 {[%emt 0:05:00]} (12. Ng5 $14) 12... Qa3 {[%emt 0:02:18]} 13. h4 $146 {[%emt 0:08:43] [#]} ({Vorgänger:} 13. Be2 b6 14. Qc2 Bb2 15. Rb1 Bxf3 16. Bxf3 Qc3+ 17. Kd1 Qxc2+ 18. Kxc2 Bf6 19. e5 Bxe5 20. d6 Nd7 21. dxe7 {1-0 (21) Barria Zuniga,D (2428)-Hj,E (2168) Turin 2006}) 13... Nc6 $1 {[%emt 0:03:19]} 14. Nh2 {[%emt 0:01:18]} Bc8 {[%emt 0:05:52]} 15. h5 {[%emt 0:08:26]} Nd4 {[%emt 0:03:36]} (15... b6 $11 16. Bh6 Bb2) 16. hxg6 {[%emt 0:01:39]} fxg6 {[%emt 0:04:40]} 17. Nf3 {[%emt 0:09:24]} Nxf3+ {[%emt 0:01:28]} 18. gxf3 {[%emt 0:00:13]} Bd7 {[%emt 0:04:41]} 19. Be2 {[%emt 0:02:14]} Ba4 {[%emt 0:00:44]} 20. Kf1 {[%emt 0:02:10]} Bb2 {[%emt 0:05:10]} 21. Rb1 {[%emt 0:00:04]} Bc3 {[%emt 0:01:05]} 22. Bxc5 {[%emt 0:00:40]} Bxd2 {[%emt 0:00:34]} 23. Bxa3 {[%emt 0:00:08]} Rd7 {[%emt 0:01:02]} 24. e5 {[%emt 0:06:50]} Bc2 {[%emt 0:02:39]} 25. Ra1 {[%emt 0:10:56]} (25. Rb2 $18 {is the precise move to win.} Bc1 26. Rxc2 Bxa3 27. f4) 25... Ba4 $2 {[%emt 0:06:13]} (25... b6 $16) 26. e6 {[%emt 0:01:15]} Rc7 {[%emt 0:00:08]} 27. c5 {[%emt 0:00:29]} Bf4 {[%emt 0:03:13]} 28. d6 {[%emt 0:03:19]} Rc6 $2 {[%emt 0:02:10]} (28... exd6 29. cxd6 Rc6) 29. d7 {[%emt 0:00:46]} a6 {[%emt 0:01:12]} 30. Rb1 $18 {[%emt 0:01:16]} Rxe6 {[%emt 0:04:00]} 31. Bc4 {[%emt 0:00:16]} Bb5 {[%emt 0:00:01]} 32. Rxb5 {[%emt 0:00:10]} axb5 {[%emt 0:00:49]} 33. Bxe6+ {[%emt 0:00:07]} Kg7 {[%emt 0:00:13]} 34. Bb2+ {[%emt 0:00:07]} Kf8 {[%emt 0:00:24]} 35. Rxh7 {[%emt 0:00:07]} Be5 {[%emt 0:00:19]} 36. Bxe5 {[%emt 0:00:06]} 1-0

[Event "GER-ch Youth U12M 2018"]
[Site "Willingen"]
[Date "2018.05.25"]
[Round "9"]
[White "Metzdorf, Matteo"]
[Black "Bakiev, Diyor"]
[Result "1/2-1/2"]
[ECO "C88"]
[WhiteElo "1832"]
[BlackElo "1752"]
[Annotator "NA RC"]
[PlyCount "79"]
[EventDate "2018.05.19"]
[EventType "swiss"]
[EventCountry "GER"]
[SourceTitle "playchess.com"]
[Source "ChessBase"]
[SourceQuality "1"]
[TimeControl "40/4500+30:900+30"]

1. e4 {[%emt 0:00:00]} e5 {[%emt 0:00:07]} 2. Nf3 {[%emt 0:00:00]} Nc6 {[%emt 0:00:05]} 3. Bb5 {[%emt 0:00:00]} a6 {[%emt 0:00:10]} 4. Ba4 {[%emt 0:00:00]} Nf6 {[%emt 0:00:15]} 5. O-O {[%emt 0:00:00]} Be7 {[%emt 0:00:08]} 6. Re1 {[%emt 0:00:02]} b5 {[%emt 0:00:09]} 7. Bb3 {[%emt 0:00:02]} O-O {[%emt 0:00:09]} 8. a4 {[%emt 0:01:21]} Bb7 {[%emt 0:00:58]} 9. c3 {[%emt 0:00:07]} d6 {[%emt 0:02:25]} 10. d4 {[%emt 0:01:06]} h6 {[%emt 0:02:42]} 11. Nbd2 {[%emt 0:02:16] C90: Spanische Partie (Abweichungen von der Hauptvariante)} Re8 {[%emt 0:01:00]} 12. Nf1 {[%emt 0:01:38]} Bf8 {[%emt 0:04:03] LiveBook: 5 Games} 13. Ng3 {[%emt 0:03:10]} g6 {[%emt 0:03:36]} (13... Qd7 14. h3 Rad8 15. axb5 axb5 16. dxe5 Nxe5 17. Nxe5 Rxe5 18. Bf4 Ree8 19. Qf3 Nh7 20. Ra7 Bc6 21. Bd2 g6 22. Rea1 d5 23. exd5 Bxd5 24. Bxd5 Qxd5 25. Qxd5 Rxd5 {1-0 (47) Alekseenko,K (2580)-Ponkratov,P (2607) Khanty-Mansiysk 2016}) 14. Nh4 {[%emt 0:27:53]} g5 $146 {[%emt 0:15:54]} ({Vorgänger:} 14... d5 15. axb5 axb5 16. Rxa8 Bxa8 17. exd5 Nxd5 18. Qg4 Na5 19. Nxg6 Nf6 20. Bxf7+ Kxf7 21. Nh8+ Ke7 22. Rxe5+ Kd6 23. Nf7+ {1-0 (23) Paal,A (2175)-Bernath,R (2188) Heves 2001}) 15. Nhf5 {[%emt 0:00:59]} exd4 {[%emt 0:00:45]} 16. cxd4 {[%emt 0:00:19]} Ne7 {[%emt 0:00:46]} 17. f3 {[%emt 0:08:55]} Nxf5 {[%emt 0:02:41]} 18. Nxf5 {[%emt 0:00:18]} Qd7 {[%emt 0:06:10]} (18... Bc8 $16) 19. Bc2 {[%emt 0:08:27]} c5 {[%emt 0:07:47]} (19... Qe6 $142 20. h4 gxh4 21. Bxh6 Nxe4) 20. h4 {[%emt 0:03:54]} d5 {[%emt 0:10:04]} (20... Qe6 {ist wohl besser.} 21. hxg5 hxg5 22. Bxg5 b4) 21. hxg5 {[%emt 0:02:00]} hxg5 {[%emt 0:00:30]} 22. Bxg5 dxe4 {[%emt 0:02:42]} 23. fxe4 {[%emt 0:06:46]} ({Not} 23. Bxf6 $2 Qxf5 24. Bh4 Qh5 $19) 23... Nh7 {[%emt 0:12:53]} 24. Qg4 {[%emt 0:01:03]} Kh8 {[%emt 0:01:13]} 25. Qh3 $18 {[%emt 0:08:34]} Qe6 {[%emt 0:02:31]} 26. e5 {[%emt 0:00:45]} Qg6 {[%emt 0:00:56]} 27. Bf6+ {[%emt 0:01:30]} Kg8 {[%emt 0:00:32]} 28. Ne7+ {[%emt 0:01:02]} Bxe7 {[%emt 0:01:26]} 29. Bxg6 {[%emt 0:00:08]} fxg6 {[%emt 0:00:28]} 30. Qh6 {[%emt 0:01:29]} Bxf6 {[%emt 0:00:57]} 31. exf6 {[%emt 0:00:36]} Nxf6 {[%emt 0:01:12]} 32. Qxg6+ {[%emt 0:00:29]} Kf8 {[%emt 0:00:10]} 33. Qxf6+ {[%emt 0:00:15]} Kg8 {[%emt 0:00:04]} 34. Rxe8+ {[%emt 0:00:41]} Rxe8 {[%emt 0:00:04]} 35. Qg6+ {[%emt 0:00:04]} Kf8 {[%emt 0:00:04]} 36. Rf1+ {[%emt 0:00:06]} Ke7 {[%emt 0:00:06]} 37. Re1+ {[%emt 0:00:03]} Kd7 {[%emt 0:01:40]} 38. Qxe8+ {[%emt 0:00:37]} Kc7 {[%emt 0:00:33]} 39. Re7+ {[%emt 0:00:12]} Kb6 {[%emt 0:00:07]} 40. Qd8+ {[%emt 0:00:24]} 1/2-1/2

[Event "GER-ch Youth U12M 2018"]
[Site "Willingen"]
[Date "2018.05.25"]
[Round "9"]
[White "Schubert, Nikita"]
[Black "Werner, Denis"]
[Result "1-0"]
[ECO "D02"]
[WhiteElo "1802"]
[BlackElo "1706"]
[Annotator "NA"]
[PlyCount "143"]
[EventDate "2018.05.19"]
[EventType "swiss"]
[EventCountry "GER"]
[SourceTitle "playchess.com"]
[Source "ChessBase"]
[SourceQuality "1"]
[TimeControl "40/4500+30:900+30"]

1. d4 {[%emt 0:00:00]} d5 {[%emt 0:00:20]} 2. Nf3 {[%emt 0:00:00]} Nf6 {[%emt 0:00:39]} 3. g3 {[%emt 0:00:00]} c6 {[%emt 0:00:30]} 4. Bg2 {[%emt 0:00:00]} Bf5 {[%emt 0:00:46]} 5. O-O {[%emt 0:00:29]} h6 {[%emt 0:00:42]} 6. c4 {[%emt 0:00:50]} e6 {[%emt 0:00:40]} 7. Nc3 {[%emt 0:01:49]} Be7 {[%emt 0:00:48]} 8. Qb3 {[%emt 0:02:18]} Qb6 {[%emt 0:01:22]} 9. c5 {[%emt 0:01:20]} Qxb3 {[%emt 0:01:38]} 10. axb3 {[%emt 0:00:07]} O-O {[%emt 0:00:44] D11: Slav Defence: 3 Nf3 sidelines and 3...Nf6 4 e3 Bg4} (10... Na6 11. Ne5 Nc7 12. f3 Nd7 13. Nxd7 Kxd7 14. e4 Bh7 15. b4 a6 16. Na4 Rae8 17. Nb6+ Kd8 18. Be3 {½-½ (57) Muse,M (2379)-Johansson,L (2399) Germany 2016}) 11. b4 {[%emt 0:08:35]} a6 {[%emt 0:03:13]} 12. b5 {[%emt 0:11:14]} cxb5 {[%emt 0:02:15]} 13. Nxb5 {[%emt 0:00:16]} Nc6 {[%emt 0:00:20]} 14. Nc3 {[%emt 0:02:19]} Nd7 {[%emt 0:03:58]} 15. Na4 {[%emt 0:18:51]} Bc2 $146 {[%emt 0:01:28]} ({Predecessor:} 15... Bf6 16. Rd1 Bc2 17. Rd2 Be4 18. e3 {0-1 (29) Wenzel,B (1952)-Luckow,R (2190) Germany 2015}) 16. Bd2 {[%emt 0:00:48]} Bxa4 {[%emt 0:02:52]} 17. Rxa4 {[%emt 0:00:16]} f5 {[%emt 0:03:25]} 18. Rfa1 {[%emt 0:02:25]} Kh7 {[%emt 0:03:11]} 19. b4 {[%emt 0:04:23]} Rac8 {[%emt 0:01:28]} 20. e3 {[%emt 0:02:46]} Ndb8 {[%emt 0:02:30]} 21. Bf1 {[%emt 0:01:02]} Bd8 {[%emt 0:02:05]} 22. Rb1 {[%emt 0:06:52]} Rf7 {[%emt 0:02:11]} 23. Ra2 {[%emt 0:02:01]} Bf6 {[%emt 0:01:46]} 24. Bc3 {[%emt 0:02:45]} (24. b5 $142 axb5 25. Rxb5 (25. Bxb5 Rfc7 $16)) 24... g5 {[%emt 0:02:10]} 25. b5 {[%emt 0:01:35]} axb5 {[%emt 0:00:21]} 26. Bxb5 {[%emt 0:00:29]} Rcc7 {[%emt 0:02:13]} 27. Bd3 {[%emt 0:02:18]} Kg7 {[%emt 0:00:49]} 28. Be2 {[%emt 0:02:09]} Kg6 {[%emt 0:00:44]} 29. Rab2 {[%emt 0:00:48]} Rg7 {[%emt 0:01:24]} 30. Kf1 {[%emt 0:00:59]} Rgf7 {[%emt 0:01:03]} 31. Bd3 {[%emt 0:01:14]} Kg7 {[%emt 0:00:08]} 32. Ke2 {[%emt 0:01:15]} Kf8 {[%emt 0:01:15]} 33. Bb5 {[%emt 0:02:39]} Kg7 {[%emt 0:00:20]} 34. Rh1 {[%emt 0:00:11]} h5 {[%emt 0:01:25]} 35. h4 {[%emt 0:03:09]} g4 {[%emt 0:00:17]} 36. Ne1 {[%emt 0:00:50]} e5 {[%emt 0:00:41]} 37. Kd3 {[%emt 0:01:21]} Kh7 {[%emt 0:01:21]} 38. Ng2 {[%emt 0:00:49]} Rfe7 {[%emt 0:02:20]} 39. Ra1 {[%emt 0:02:20]} Kg7 {[%emt 0:01:32]} (39... Nd7 $14) 40. Ra4 {[%emt 0:00:43]} Rc8 {[%emt 0:16:40]} ({Black should play} 40... Nd7 $14) 41. Ra8 {[%emt 0:02:40]} Rcc7 {[%emt 0:00:00]} 42. Ba5 {[%emt 0:03:32]} Nxa5 {[%emt 0:00:00]} 43. Rxa5 {[%emt 0:00:08]} Nc6 {[%emt 0:00:00]} 44. Bxc6 {[%emt 0:00:35]} bxc6 {[%emt 0:00:00]} 45. Ra6 {[%emt 0:00:54]} Re8 {[%emt 0:00:00]} 46. Rbb6 {[%emt 0:00:55]} Rec8 {[%emt 0:00:00]} 47. Ne1 {[%emt 0:00:13]} exd4 {[%emt 0:00:00]} 48. exd4 {[%emt 0:00:26]} Re7 {[%emt 0:00:00]} 49. Nc2 {[%emt 0:01:29]} Re6 {[%emt 0:00:00]} 50. Ne3 {[%emt 0:02:57]} Bd8 {[%emt 0:00:00]} 51. Rb7+ {[%emt 0:01:18]} Kf6 {[%emt 0:00:00]} 52. Ng2 {[%emt 0:01:00]} Bc7 {[%emt 0:00:00]} 53. Raa7 {[%emt 0:01:18]} Bb8 {[%emt 0:00:00]} 54. Ra8 {[%emt 0:00:42]} Ree8 {[%emt 0:00:00]} 55. Rb6 {[%emt 0:00:34]} Kf7 {[%emt 0:00:00]} 56. Raa6 {[%emt 0:01:43]} Re6 $18 {[%emt 0:00:00]} (56... Re7 {ist eine bessere Verteidigung.} 57. Rxc6 Rxc6 58. Rxc6 Ra7) 57. Rb7+ {[%emt 0:01:06]} Kf6 {[%emt 0:00:00]} 58. Rab6 {[%emt 0:00:40]} Ree8 $2 {[%emt 0:00:14]} (58... Bc7 $14) 59. Rh7 {[%emt 0:00:38]} Kg6 {[%emt 0:00:12]} 60. Rd7 {[%emt 0:00:11]} Re6 {[%emt 0:01:26]} 61. Rxd5 {[%emt 0:00:54]} Bc7 {[%emt 0:00:21]} 62. Ra6 {[%emt 0:00:22]} Bb8 {[%emt 0:02:43]} 63. Rd7 {[%emt 0:00:36]} Rce8 {[%emt 0:00:53]} 64. Rb6 {[%emt 0:00:38]} Rc8 {[%emt 0:00:53]} 65. Rbb7 {[%emt 0:00:35]} Kf6 {[%emt 0:00:50]} 66. Rf7+ {[%emt 0:00:29]} Kg6 {[%emt 0:00:09]} 67. Rg7+ {[%emt 0:00:16]} Kh6 {[%emt 0:00:14]} 68. Rh7+ {[%emt 0:00:42]} Kg6 {[%emt 0:00:07]} 69. Rbg7+ {[%emt 0:00:06]} Kf6 {[%emt 0:00:07]} 70. Rf7+ {[%emt 0:00:03]} Kg6 {[%emt 0:00:06]} 71. Rhg7+ {[%emt 0:00:05]} Kh6 {[%emt 0:00:07]} 72. Ne3 {[%emt 0:00:12]} 1-0

[Event "GER-ch Youth U12M 2018"]
[Site "Willingen"]
[Date "2018.05.25"]
[Round "9"]
[White "Huo, Da"]
[Black "Klugstedt, Vincent"]
[Result "1-0"]
[ECO "B76"]
[WhiteElo "1790"]
[BlackElo "1689"]
[Annotator "NA RC"]
[PlyCount "73"]
[EventDate "2018.05.19"]
[EventType "swiss"]
[EventCountry "GER"]
[SourceTitle "playchess.com"]
[Source "ChessBase"]
[SourceQuality "1"]
[TimeControl "40/4500+30:900+30"]

1. e4 {[%emt 0:00:00]} c5 {[%emt 0:00:07]} 2. Nf3 {[%emt 0:00:00]} Nc6 {[%emt 0:00:06]} 3. d4 {[%emt 0:00:00]} cxd4 {[%emt 0:00:05]} 4. Nxd4 {[%emt 0:00:00]} g6 {[%emt 0:00:07]} 5. Nc3 {[%emt 0:00:01]} Bg7 {[%emt 0:00:06]} 6. Be3 {[%emt 0:00:05]} Nf6 {[%emt 0:00:59]} 7. f3 {[%emt 0:01:36]} d6 {[%emt 0:01:05]} 8. Qd2 {[%emt 0:00:19]} O-O {[%emt 0:00:57]} 9. O-O-O {[%emt 0:01:07]} Nxd4 {[%emt 0:02:15]} 10. Bxd4 {[%emt 0:01:58]} Be6 {[%emt 0:01:11]} 11. Kb1 {[%emt 0:00:11]} a6 {[%emt 0:02:06]} 12. h4 {[%emt 0:05:56]} h5 {[%emt 0:01:46]} 13. Be2 {[%emt 0:10:15]} b5 {[%emt 0:06:01]} 14. Rhg1 {[%emt 0:10:42]} b4 {[%emt 0:12:45]} 15. Nd5 {[%emt 0:03:09]} Bxd5 {[%emt 0:01:26]} 16. exd5 {[%emt 0:00:07]} Qa5 {[%emt 0:01:51]} 17. Bc4 {[%emt 0:01:08]} Rab8 {[%emt 0:02:50]} 18. Bb3 {[%emt 0:02:30]} Rb5 {[%emt 0:02:03]} 19. Be3 {[%emt 0:08:58]} Qc7 {[%emt 0:06:48]} 20. Qd3 {[%emt 0:11:31]} Qb7 {[%emt 0:02:17]} 21. Rd2 {[%emt 0:00:48]} Nd7 {[%emt 0:06:37]} 22. Bd4 {[%emt 0:02:26]} Bh6 {[%emt 0:04:04]} 23. Re2 {[%emt 0:01:45]} Nc5 {[%emt 0:00:55]} 24. Bxc5 {[%emt 0:00:36]} Rxc5 {[%emt 0:00:22]} 25. g4 {[%emt 0:00:35]} hxg4 {[%emt 0:04:02]} 26. fxg4 {[%emt 0:00:35]} a5 {[%emt 0:03:44]} 27. h5 {[%emt 0:03:01]} g5 {[%emt 0:00:57]} 28. Rge1 {[%emt 0:01:15]} Rc7 {[%emt 0:01:53]} 29. Qf5 {[%emt 0:02:28]} Qa7 {[%emt 0:01:41]} 30. c4 {[%emt 0:04:44]} Kg7 {[%emt 0:05:53]} 31. Bc2 {[%emt 0:00:23]} Rh8 {[%emt 0:00:11]} 32. Rf1 {[%emt 0:00:44]} f6 {[%emt 0:00:13]} 33. Re6 {[%emt 0:01:56]} Qd4 {[%emt 0:01:21]} 34. Qg6+ {[%emt 0:00:19]} Kf8 {[%emt 0:00:06]} 35. Re4 {[%emt 0:01:36]} Qc5 {[%emt 0:01:39]} 36. Rxf6+ {[%emt 0:00:10]} exf6 {[%emt 0:00:27]} 37. Re8# {[%emt 0:00:04] f5} 1-0

[Event "GER-ch Youth U12M 2018"]
[Site "Willingen"]
[Date "2018.05.25"]
[Round "9"]
[White "Hecht, Jonas Christian"]
[Black "Garner, Isaac"]
[Result "1/2-1/2"]
[ECO "A13"]
[WhiteElo "1713"]
[BlackElo "1751"]
[Annotator "NA RC"]
[PlyCount "51"]
[EventDate "2018.05.19"]
[EventType "swiss"]
[EventCountry "GER"]
[SourceTitle "playchess.com"]
[Source "ChessBase"]
[SourceQuality "1"]
[TimeControl "40/4500+30:900+30"]

1. c4 {[%emt 0:00:00]} e6 {[%emt 0:00:07]} 2. Nc3 {[%emt 0:00:00]} d5 {[%emt 0:00:06]} 3. e3 {[%emt 0:00:45]} Nf6 {[%emt 0:00:42]} 4. Nf3 {[%emt 0:02:19]} Be7 {[%emt 0:01:46]} 5. Be2 {[%emt 0:01:21]} O-O {[%emt 0:01:24]} 6. b3 {[%emt 0:02:07]} Nbd7 {[%emt 0:02:46]} 7. Bb2 {[%emt 0:00:41]} b6 {[%emt 0:02:36]} 8. O-O {[%emt 0:02:19]} Bb7 {[%emt 0:01:03]} 9. Qc2 {[%emt 0:02:23]} c5 {[%emt 0:03:13]} 10. Rfd1 {[%emt 0:07:47]} Rc8 {[%emt 0:05:06]} 11. d3 {[%emt 0:07:50]} Qc7 {[%emt 0:05:25]} 12. h3 {[%emt 0:00:55]} a6 {[%emt 0:04:04]} 13. Rd2 {[%emt 0:01:19]} Qb8 {[%emt 0:18:22]} 14. Rad1 {[%emt 0:00:28]} Qa8 {[%emt 0:01:06]} 15. d4 {[%emt 0:06:09]} Rfd8 {[%emt 0:06:14]} 16. Ba1 {[%emt 0:10:31]} cxd4 {[%emt 0:04:54]} 17. exd4 {[%emt 0:09:33]} dxc4 {[%emt 0:03:49]} 18. bxc4 {[%emt 0:00:33]} Ne4 {[%emt 0:00:31]} 19. Nxe4 {[%emt 0:01:23]} Bxe4 {[%emt 0:00:05]} 20. Qb3 {[%emt 0:02:30]} Bf6 {[%emt 0:02:49]} 21. Bb2 {[%emt 0:05:46]} Qb7 {[%emt 0:04:51]} 22. Ba3 {[%emt 0:01:20]} Nb8 {[%emt 0:03:32]} 23. c5 {[%emt 0:09:10]} b5 {[%emt 0:03:55]} 24. Bb2 {[%emt 0:01:00]} Bd5 {[%emt 0:01:01]} 25. Qa3 {[%emt 0:01:07]} Nc6 {[%emt 0:02:12]} 26. Ba1 {[%emt 0:01:38]} 1/2-1/2

[Event "GER-ch Youth U12M 2018"]
[Site "Willingen"]
[Date "2018.05.25"]
[Round "9"]
[White "Prieb, Robert"]
[Black "May, Ben-Iven"]
[Result "1/2-1/2"]
[ECO "D37"]
[WhiteElo "1709"]
[BlackElo "1769"]
[Annotator "NA RC"]
[PlyCount "63"]
[EventDate "2018.05.19"]
[EventType "swiss"]
[EventCountry "GER"]
[SourceTitle "playchess.com"]
[Source "ChessBase"]
[SourceQuality "1"]
[TimeControl "40/4500+30:900+30"]

1. d4 {[%emt 0:00:00]} d5 {[%emt 0:00:20]} 2. c4 {[%emt 0:00:00]} e6 {[%emt 0:00:16]} 3. Nc3 {[%emt 0:00:14]} Nf6 {[%emt 0:00:40]} 4. Nf3 {[%emt 0:00:25]} Be7 {[%emt 0:00:26]} 5. Bf4 {[%emt 0:00:26]} O-O {[%emt 0:00:36]} 6. e3 {[%emt 0:00:30]} Nbd7 {[%emt 0:00:50]} 7. c5 {[%emt 0:00:27]} Ne4 {[%emt 0:06:13]} 8. Nxe4 {[%emt 0:00:32]} dxe4 {[%emt 0:00:09]} 9. Ne5 {[%emt 0:00:43]} Nxe5 {[%emt 0:03:16]} 10. Bxe5 {[%emt 0:00:07]} f6 {[%emt 0:06:10]} 11. Bg3 {[%emt 0:01:31]} Kh8 {[%emt 0:08:01]} 12. Bc4 {[%emt 0:01:38]} e5 {[%emt 0:01:20]} 13. O-O {[%emt 0:05:21]} exd4 {[%emt 0:05:10]} 14. exd4 {[%emt 0:01:01]} f5 {[%emt 0:00:09]} 15. Be5 {[%emt 0:04:02]} Bf6 {[%emt 0:01:09]} 16. Bxf6 {[%emt 0:02:47]} Qxf6 {[%emt 0:00:12]} 17. b4 {[%emt 0:02:02]} Bd7 {[%emt 0:01:36]} 18. d5 {[%emt 0:01:18]} b5 {[%emt 0:04:47]} 19. Bb3 {[%emt 0:00:58]} Rae8 {[%emt 0:03:43]} 20. Qd2 {[%emt 0:00:55]} f4 {[%emt 0:01:52]} 21. Rae1 {[%emt 0:07:38]} f3 {[%emt 0:02:51]} 22. Re3 {[%emt 0:15:21]} Bh3 {[%emt 0:02:06]} 23. g3 {[%emt 0:04:39]} Bxf1 {[%emt 0:00:16]} 24. Kxf1 {[%emt 0:00:02]} h5 {[%emt 0:07:39]} 25. d6 {[%emt 0:08:50]} cxd6 {[%emt 0:02:18]} 26. cxd6 {[%emt 0:00:55]} Rd8 {[%emt 0:00:16]} 27. Rxe4 {[%emt 0:01:32]} Rxd6 {[%emt 0:00:11]} 28. Qe1 {[%emt 0:00:21]} Qf5 {[%emt 0:01:29]} 29. Rh4 {[%emt 0:01:29]} Rd4 {[%emt 0:03:00]} 30. Bc2 {[%emt 0:04:45]} Qd5 {[%emt 0:05:28]} 31. Bb3 {[%emt 0:01:49]} Qf5 {[%emt 0:00:27]} 32. Bc2 {[%emt 0:00:10]} 1/2-1/2